bitfinex/quotes_BTCUSD_20241223
["timestamp","ask_amount","ask_price","bid_price","bid_amount"]
[1734975499169,0.427282,93615.0,93612.0,0.00824548]
[1734975499371,0.213645,93613.0,93612.0,0.00224548]
[1734975499594,0.54713132,93613.0,93612.0,0.00224548]
[1734975499803,0.001,93616.0,93612.0,0.00824548]
[1734975500074,0.001,93616.0,93613.0,0.213645]
[1734975500495,0.001,93616.0,93615.0,0.21364]
[1734975500903,0.213607,93630.0,93615.0,0.21364]
[1734975501308,0.213598,93634.0,93612.0,0.00624548]
[1734975501515,0.213598,93634.0,93613.0,0.10398632]
[1734975501722,0.213595,93636.0,93621.0,0.213627]
[1734975501927,0.213595,93636.0,93613.0,0.10398632]
[1734975501928,0.002,93630.0,93629.0,0.213608]
[1734975502962,0.002,93630.0,93629.0,0.71709432]
[1734975503179,0.0031712,93631.0,93630.0,0.373]
[1734975503381,0.0031712,93631.0,93630.0,0.58005735]
[1734975503809,0.0031712,93631.0,93630.0,0.47698632]
[1734975504009,0.0041712,93631.0,93630.0,0.47698632]
[1734975504218,0.0011712,93631.0,93630.0,0.47698632]
[1734975504439,0.0001712,93631.0,93630.0,0.47698632]
[1734975504858,0.0001712,93631.0,93630.0,0.83032458]
[1734975504859,0.0021712,93631.0,93630.0,0.83032458]
[1734975505059,0.0001716,93646.0,93636.0,0.1]
[1734975505260,0.0001716,93646.0,93637.0,0.22805395]
[1734975505471,0.0001716,93646.0,93645.0,0.44055832]
[1734975506531,0.0001716,93646.0,93645.0,0.34055832]
[1734975506736,0.00070433,93646.0,93645.0,0.34055832]
[1734975506915,0.00070433,93646.0,93645.0,0.41289937]
[1734975507528,0.00170433,93646.0,93645.0,0.41289937]
[1734975508148,0.00070433,93646.0,93645.0,0.41289937]
[1734975508350,0.00170433,93646.0,93645.0,0.41289937]
[1734975508777,0.00170433,93646.0,93645.0,0.59109937]
[1734975508976,0.00170433,93646.0,93645.0,0.84109937]
[1734975509570,0.00170433,93646.0,93645.0,0.41875832]
[1734975509768,0.00170433,93646.0,93645.0,0.53922823]
[1734975510457,0.00170433,93646.0,93645.0,0.46102823]
[1734975510658,0.00070433,93646.0,93645.0,0.46102823]
[1734975511071,0.00270433,93646.0,93645.0,0.31755832]
[1734975511554,0.00470433,93646.0,93645.0,0.31755832]
[1734975512159,0.00270433,93646.0,93645.0,0.31755832]
[1734975512377,0.00070433,93646.0,93645.0,0.31755832]
[1734975512565,0.00270433,93646.0,93645.0,0.31755832]
[1734975512739,0.00470433,93646.0,93645.0,0.31755832]
[1734975512949,0.00270433,93646.0,93645.0,0.31755832]
[1734975513352,0.00470433,93646.0,93645.0,0.39203135]
[1734975513773,0.00270433,93646.0,93645.0,0.39203135]
[1734975513973,0.00070433,93646.0,93645.0,0.31755832]
[1734975514193,0.00470433,93646.0,93645.0,0.31755832]
[1734975515004,0.00270433,93646.0,93645.0,0.31755832]
[1734975515556,0.00470433,93646.0,93645.0,0.31755832]
[1734975516399,0.00670433,93646.0,93645.0,0.31755832]
[1734975516798,0.00470433,93646.0,93645.0,0.31755832]
[1734975517000,0.00070433,93646.0,93645.0,0.40203135]
[1734975517204,0.00270433,93646.0,93645.0,0.42503135]
[1734975517430,0.00470433,93646.0,93645.0,0.42503135]
[1734975517654,0.00470433,93646.0,93645.0,0.52503135]
[1734975517860,0.0001712,93665.0,93664.0,0.213529]
[1734975518064,0.00033095,93665.0,93664.0,0.36186822]
[1734975519021,0.00033095,93665.0,93664.0,0.37086822]
[1734975519346,0.00133095,93665.0,93664.0,0.37086822]
[1734975519771,0.00133095,93665.0,93664.0,0.47086822]
[1734975519961,0.00033095,93665.0,93664.0,0.72086822]
[1734975520167,0.00133095,93665.0,93664.0,0.72086822]
[1734975520390,0.00133095,93665.0,93664.0,0.71186822]
[1734975520593,0.0001712,93695.0,93676.0,0.1]
[1734975520836,0.0001712,93695.0,93683.0,0.236485]
[1734975520994,0.0001712,93695.0,93683.0,0.34047132]
[1734975521645,0.00529588,93684.0,93683.0,0.52027132]
[1734975521854,3.12e-05,93684.0,93683.0,0.81637132]
[1734975522061,0.0001712,93695.0,93694.0,0.31346]
[1734975522270,0.0001712,93695.0,93694.0,0.68948592]
[1734975522493,0.00033089,93695.0,93694.0,0.68948592]
[1734975522902,0.00033089,93695.0,93694.0,0.78948592]
[1734975525156,0.0001716,93712.0,93711.0,0.213422]
[1734975525363,0.0001716,93712.0,93693.0,0.34525375]
[1734975525579,0.0001716,93712.0,93695.0,0.213458]
[1734975525785,0.0001716,93712.0,93696.0,0.10505335]
[1734975525996,0.0001716,93712.0,93705.0,0.213435]
[1734975526213,0.0001716,93712.0,93706.0,0.02662372]
[1734975526431,0.0001716,93712.0,93706.0,0.00528022]
[1734975526663,0.0001716,93712.0,93708.0,0.213428]
[1734975526882,0.0011716,93712.0,93708.0,0.213428]
[1734975527339,0.0031716,93712.0,93711.0,0.001]
[1734975527543,0.0021716,93712.0,93711.0,0.001]
[1734975527748,0.0001716,93712.0,93704.0,0.213437]
[1734975527925,0.0001716,93712.0,93708.0,0.006]
[1734975528336,0.0001716,93712.0,93704.0,0.213437]
[1734975528536,0.0021716,93712.0,93711.0,0.001]
[1734975529101,0.0021716,93712.0,93707.0,0.21343]
[1734975529442,0.0021716,93712.0,93711.0,0.213422]
[1734975529626,0.0021716,93712.0,93711.0,0.31740832]
[1734975529840,0.0021716,93712.0,93708.0,0.02827494]
[1734975529841,0.0021716,93712.0,93708.0,0.21870194]
[1734975530042,0.0041716,93712.0,93708.0,0.00627494]
[1734975530637,0.0041716,93712.0,93708.0,0.001]
[1734975530844,0.0041716,93712.0,93693.0,0.09525375]
[1734975530845,0.0011716,93712.0,93709.0,0.14677342]
[1734975531107,0.0011716,93712.0,93711.0,0.236422]
[1734975531321,0.0001716,93712.0,93711.0,0.34040832]
[1734975531528,0.0021716,93712.0,93711.0,0.34040832]
[1734975531737,0.0061716,93712.0,93711.0,0.34040832]
[1734975532185,0.0081716,93712.0,93711.0,0.34040832]
[1734975532393,0.0081716,93712.0,93711.0,0.44439464]
[1734975532595,0.00462729,93712.0,93711.0,0.34040832]
[1734975533003,0.002,93712.0,93711.0,0.34040832]
[1734975533409,0.002,93712.0,93711.0,0.69064849]
[1734975533410,0.001,93712.0,93711.0,0.69064849]
[1734975533623,0.0001716,93716.0,93711.0,0.45422649]
[1734975533822,0.0001716,93716.0,93712.0,0.10398632]
[1734975534232,0.0001716,93716.0,93711.0,0.001]
[1734975534433,0.2135826,93716.0,93711.0,0.001]
[1734975534649,0.213433,93706.0,93702.0,0.1905075]
[1734975535062,0.001,93716.0,93702.0,0.1905075]
[1734975535275,0.213455,93697.0,93694.0,0.0001708]
[1734975535478,0.21448271,93715.0,93694.0,0.0001708]
[1734975535479,8.54e-05,93712.0,93694.0,0.0001708]
[1734975535689,0.213456,93697.0,93694.0,0.0001708]
[1734975535889,0.07616971,93696.0,93694.0,0.0001708]
[1734975536095,0.213458,93695.0,93694.0,0.0001708]
[1734975536305,0.363458,93695.0,93694.0,0.0001708]
[1734975536726,0.15,93708.0,93694.0,0.0001708]
[1734975536941,0.00106971,93707.0,93694.0,0.0001708]
[1734975537166,0.213458,93695.0,93694.0,0.0001708]
[1734975537595,0.213458,93695.0,93694.0,0.0111708]
[1734975538223,0.31744432,93695.0,93694.0,0.0071708]
[1734975538434,0.31744432,93695.0,93660.0,0.30845651]
[1734975538435,0.0462,93694.0,93660.0,0.09491951]
[1734975538642,0.0462,93694.0,93660.0,0.0950792]
[1734975538643,0.213536,93662.0,93660.0,0.0950792]
[1734975538863,0.213536,93662.0,93660.0,0.00015969]
[1734975539473,0.15807831,93680.0,93660.0,0.00015969]
[1734975539679,0.213533,93662.0,93660.0,0.00015969]
[1734975540294,0.213533,93662.0,93660.0,0.00815969]
[1734975540705,0.00106971,93661.0,93660.0,0.00115969]
[1734975540914,0.00106971,93661.0,93660.0,0.00915969]
[1734975541246,0.00106971,93661.0,93660.0,0.00815969]
[1734975541468,0.21351,93672.0,93660.0,0.01215969]
[1734975541671,0.213522,93668.0,93660.0,0.01215969]
[1734975542749,0.213522,93668.0,93660.0,0.00415969]
[1734975542957,0.213513,93671.0,93660.0,0.00015969]
[1734975543167,0.213492,93680.0,93661.0,0.213535]
[1734975543375,0.0773,93689.0,93662.0,0.04499151]
[1734975543612,0.213467,93692.0,93669.0,0.213516]
[1734975543819,0.42695,93688.0,93670.0,0.10398632]
[1734975544243,0.213462,93694.0,93671.0,0.00106741]
[1734975544452,0.048,93695.0,93672.0,0.10398632]
[1734975544655,0.213445,93701.0,93683.0,0.213484]
[1734975544892,0.001,93688.0,93683.0,0.31747032]
[1734975545107,0.001,93688.0,93673.0,0.023]
[1734975545319,0.001,93688.0,93660.0,0.158238]
[1734975545320,0.001,93688.0,93674.0,0.10398632]
[1734975545527,0.001,93688.0,93664.0,0.023]
[1734975545728,0.001,93688.0,93665.0,0.10398632]
[1734975545930,0.213495,93679.0,93666.0,0.023]
[1734975546070,0.213495,93679.0,93667.0,0.10398632]
[1734975546893,0.213488,93682.0,93667.0,0.10398632]
[1734975547724,0.426977,93682.0,93667.0,0.10398632]
[1734975548225,0.213498,93678.0,93667.0,0.10398632]
[1734975548435,0.004,93682.0,93660.0,0.00033049]
[1734975548641,0.213518,93669.0,93660.0,0.00033049]
[1734975548842,0.213508,93673.0,93660.0,0.00033049]
[1734975549436,0.213508,93673.0,93667.0,0.001]
[1734975549637,0.427017,93673.0,93660.0,0.00033049]
[1734975549829,0.427017,93673.0,93660.0,0.00233049]
[1734975550216,0.427017,93673.0,93660.0,0.00033049]
[1734975550608,0.428017,93673.0,93660.0,0.00033049]
[1734975550823,0.21352,93668.0,93660.0,0.00033049]
[1734975551258,0.21351,93672.0,93660.0,0.00033049]
[1734975552972,0.001,93668.0,93660.0,0.00033049]
[1734975553179,0.001,93668.0,93660.0,0.00133049]
[1734975553402,0.004,93672.0,93667.0,0.213522]
[1734975553632,0.004,93672.0,93661.0,0.10398632]
[1734975553846,0.008,93672.0,93669.0,0.213517]
[1734975554067,0.004,93672.0,93669.0,0.213517]
[1734975554207,0.004,93672.0,93663.0,0.213531]
[1734975554208,0.003,93672.0,93663.0,0.213531]
[1734975554408,0.003,93672.0,93664.0,0.10398632]
[1734975554617,0.216511,93672.0,93667.0,0.004]
[1734975554893,0.003,93672.0,93667.0,0.004]
[1734975555490,0.213493,93680.0,93667.0,0.004]
[1734975555636,0.15,93683.0,93665.0,0.00106747]
[1734975555845,0.23697831,93700.0,93665.0,0.00106747]
[1734975555846,0.213471,93690.0,93667.0,0.213522]
[1734975556039,0.213471,93690.0,93668.0,0.10505373]
[1734975556256,0.213483,93685.0,93668.0,0.10505373]
[1734975556458,0.002,93672.0,93668.0,0.31750532]
[1734975557352,0.213489,93682.0,93668.0,0.31750532]
[1734975557646,0.21348,93686.0,93668.0,0.53202432]
[1734975557843,0.21348,93686.0,93672.0,0.21351]
[1734975558044,0.43029614,93752.0,93674.0,0.213506]
[1734975558045,0.213455,93697.0,93674.0,0.213506]
[1734975558216,0.213455,93697.0,93673.0,0.10505373]
[1734975558217,0.15,93696.0,93684.0,0.213482]
[1734975558983,0.213463,93693.0,93681.0,0.213489]
[1734975559344,0.15807831,93691.0,93662.0,0.0811]
[1734975559543,0.00106971,93690.0,93684.0,0.001]
[1734975559756,0.00106971,93690.0,93669.0,0.10398632]
[1734975560157,0.00106971,93690.0,93669.0,0.13337308]
[1734975560344,0.00106971,93690.0,93657.0,0.09491951]
[1734975560345,0.15807831,93680.0,93660.0,0.00033049]
[1734975560544,0.213518,93669.0,93660.0,0.00033049]
[1734975561737,0.42699,93679.0,93660.0,0.00033049]
[1734975561944,0.00106971,93678.0,93660.0,0.00033049]
[1734975562580,0.213514,93671.0,93660.0,0.00033049]
[1734975562783,0.213514,93671.0,93660.0,0.00733049]
[1734975562998,0.15907831,93680.0,93660.0,0.00033049]
[1734975563207,0.213511,93672.0,93660.0,0.00033049]
[1734975563615,0.213501,93676.0,93660.0,0.00133049]
[1734975563823,0.21457371,93675.0,93661.0,0.213536]
[1734975564017,0.213506,93674.0,93660.0,0.00433049]
[1734975564266,0.213517,93670.0,93660.0,0.00433049]
[1734975564452,0.213528,93665.0,93660.0,0.00433049]
[1734975564670,0.213536,93661.0,93660.0,0.00433049]
[1734975564872,0.15,93678.0,93660.0,0.00433049]
[1734975565073,0.213529,93665.0,93660.0,0.00033049]
[1734975565267,0.213521,93668.0,93660.0,0.00033049]
[1734975565818,0.005,93661.0,93660.0,0.00033049]
[1734975566024,0.005,93661.0,93660.0,0.21486849]
[1734975566292,0.156,93678.0,93660.0,0.21486849]
[1734975566461,0.006,93668.0,93660.0,0.21586849]
[1734975566671,0.006,93668.0,93660.0,0.21486849]
[1734975566987,0.002,93661.0,93660.0,0.00033049]
[1734975567236,0.005,93661.0,93660.0,0.00033049]
[1734975567422,0.155,93661.0,93660.0,0.00033049]
[1734975567565,0.34148632,93661.0,93660.0,0.00033049]
[1734975568119,0.33948632,93661.0,93660.0,0.00033049]
[1734975569434,0.33648632,93661.0,93660.0,0.00033049]
[1734975570492,0.33648632,93661.0,93660.0,0.00233049]
[1734975572791,0.15,93661.0,93660.0,0.00233049]
[1734975573000,0.213525,93666.0,93660.0,0.00233049]
[1734975573206,0.15,93665.0,93660.0,0.00233049]
[1734975573411,0.15,93673.0,93660.0,0.00233049]
[1734975573624,0.21351,93672.0,93660.0,0.00233049]
[1734975573830,0.21351,93672.0,93660.0,0.00033049]
[1734975574042,0.213499,93678.0,93662.0,0.213533]
[1734975574242,0.213499,93678.0,93661.0,0.10398632]
[1734975574447,0.213499,93677.0,93661.0,0.10398632]
[1734975574852,0.10398632,93692.0,93661.0,0.10398632]
[1734975574853,0.15803536,93700.0,93661.0,0.10505384]
[1734975575058,0.213454,93697.0,93667.0,0.21352]
[1734975575270,0.00106971,93696.0,93668.0,0.12805371]
[1734975575487,0.1242,93710.0,93662.0,0.01253843]
[1734975575488,0.15803536,93680.0,93662.0,0.01253843]
[1734975575694,0.213502,93676.0,93663.0,0.10398632]
[1734975575898,0.213502,93676.0,93660.0,0.00033049]
[1734975575899,0.213513,93671.0,93660.0,0.00033049]
[1734975576109,0.213531,93663.0,93660.0,0.00033049]
[1734975576319,0.213531,93663.0,93660.0,0.00833049]
[1734975576523,0.213531,93663.0,93660.0,0.00033049]
[1734975576730,0.213531,93663.0,93662.0,0.002]
[1734975577349,0.214531,93663.0,93662.0,0.002]
[1734975577559,0.214531,93663.0,93660.0,0.00033049]
[1734975578503,0.001,93663.0,93660.0,0.00033049]
[1734975578706,0.213533,93662.0,93660.0,0.00033049]
[1734975579301,0.213533,93662.0,93660.0,0.00533049]
[1734975579758,0.213527,93665.0,93660.0,0.00533049]
[1734975579959,0.001,93662.0,93660.0,0.01433049]
[1734975580201,0.213536,93661.0,93660.0,0.01433049]
[1734975580402,0.213536,93661.0,93660.0,0.00033049]
[1734975580731,0.213536,93661.0,93660.0,0.01133049]
[1734975580933,0.002,93662.0,93660.0,0.01133049]
[1734975581133,0.001,93662.0,93660.0,0.00533049]
[1734975581568,0.001,93661.0,93660.0,0.01133049]
[1734975581985,0.001,93661.0,93660.0,0.00633049]
[1734975582154,0.001,93661.0,93660.0,0.01533049]
[1734975582587,0.214535,93662.0,93660.0,0.00033049]
[1734975582869,0.001,93661.0,93660.0,0.00933049]
[1734975583625,0.15,93665.0,93660.0,0.00033049]
[1734975583867,0.001,93662.0,93660.0,0.01533049]
[1734975584103,0.002,93662.0,93660.0,0.01533049]
[1734975584323,0.001,93662.0,93660.0,0.00933049]
[1734975584811,0.001,93661.0,93660.0,0.01533049]
[1734975585074,0.001,93661.0,93660.0,0.11931681]
[1734975585311,0.213472,93689.0,93674.0,0.213506]
[1734975585496,0.213476,93687.0,93674.0,0.213506]
[1734975585725,0.213457,93696.0,93675.0,0.10398632]
[1734975585968,8.54e-05,93712.0,93687.0,0.0797]
[1734975586188,0.213428,93709.0,93687.0,0.18368632]
[1734975586390,0.213445,93701.0,93687.0,0.18368632]
[1734975586809,0.213428,93709.0,93687.0,0.18368632]
[1734975586810,0.213428,93709.0,93692.0,0.213465]
[1734975587377,0.15,93705.0,93688.0,0.213474]
[1734975588151,8.54e-05,93712.0,93687.0,0.18368632]
[1734975588152,8.54e-05,93712.0,93692.0,0.213464]
[1734975588348,8.54e-05,93712.0,93693.0,0.10505346]
[1734975588558,0.0020854,93694.0,93693.0,0.12805344]
[1734975588989,0.0020854,93694.0,93693.0,0.21286988]
[1734975589209,0.0020854,93694.0,93693.0,0.21180276]
[1734975589563,0.0020854,93694.0,93693.0,0.21280276]
[1734975589767,8.54e-05,93694.0,93693.0,0.21180276]
[1734975589976,8.54e-05,93694.0,93693.0,0.13217995]
[1734975590197,0.0050854,93694.0,93693.0,0.13424699]
[1734975590419,0.0050854,93694.0,93693.0,0.18264699]
[1734975590614,8.54e-05,93694.0,93693.0,0.18264699]
[1734975590815,8.54e-05,93712.0,93707.0,0.213429]
[1734975591017,8.54e-05,93712.0,93708.0,0.001067]
[1734975591220,8.54e-05,93712.0,93707.0,0.31741532]
[1734975591633,8.54e-05,93712.0,93709.0,0.213426]
[1734975591831,0.14366885,93722.0,93709.0,0.213426]
[1734975592040,0.15803536,93720.0,93700.0,0.213446]
[1734975592238,0.15803536,93720.0,93708.0,0.009]
[1734975592468,0.213416,93714.0,93702.0,0.213442]
[1734975592668,0.213416,93714.0,93703.0,0.10398632]
[1734975592884,0.213409,93717.0,93709.0,0.002]
[1734975593083,0.213403,93720.0,93709.0,0.002]
[1734975593291,0.00033066,93725.0,93710.0,0.10505336]
[1734975593494,0.21372066,93725.0,93710.0,0.11146453]
[1734975593736,0.21372066,93725.0,93711.0,0.213421]
[1734975593862,0.00033066,93725.0,93710.0,0.11146453]
[1734975594106,0.213411,93716.0,93710.0,0.11146453]
[1734975594295,0.00033066,93725.0,93710.0,0.11146453]
[1734975594499,0.00033066,93725.0,93710.0,0.14415358]
[1734975594707,0.15,93723.0,93710.0,0.14415358]
[1734975595187,0.15,93721.0,93710.0,0.35757658]
[1734975595407,0.15,93721.0,93710.0,0.11146453]
[1734975595611,0.213405,93719.0,93710.0,0.11146453]
[1734975596010,0.15,93721.0,93710.0,0.11146453]
[1734975596462,0.001,93717.0,93710.0,0.11146453]
[1734975596848,0.001,93717.0,93710.0,0.53831153]
[1734975597000,0.001,93717.0,93710.0,0.32488753]
[1734975597404,0.001,93717.0,93710.0,0.11146453]
[1734975597771,0.001,93717.0,93710.0,0.32488753]
[1734975598001,0.213418,93713.0,93710.0,0.00747821]
[1734975598197,0.213422,93711.0,93710.0,0.00747821]
[1734975598803,0.213418,93713.0,93692.0,0.213464]
[1734975599008,0.213435,93706.0,93693.0,0.13330272]
[1734975599214,0.213435,93706.0,93693.0,0.14084248]
[1734975599428,0.213435,93706.0,93693.0,0.11152608]
[1734975599963,0.213424,93710.0,93693.0,0.11152608]
[1734975600165,0.15,93718.0,93704.0,0.213436]
[1734975600625,0.15,93718.0,93693.0,0.11152608]
[1734975600626,0.10518041,93714.0,93693.0,0.11152608]
[1734975600835,0.213449,93699.0,93693.0,0.00753976]
[1734975601037,0.21346,93694.0,93692.0,0.001]
[1734975601287,0.15,93693.0,93692.0,0.001]
[1734975601440,0.15,93693.0,93674.0,0.09579799]
[1734975601441,0.213503,93676.0,93674.0,0.09579799]
[1734975601796,0.213503,93676.0,93674.0,0.0001708]
[1734975602189,0.15106971,93675.0,93674.0,0.0001708]
[1734975602361,0.15106971,93675.0,93674.0,0.00033049]
[1734975602741,0.15,93675.0,93674.0,0.00633049]
[1734975602941,0.005,93676.0,93674.0,0.36730725]
[1734975603162,0.005,93676.0,93675.0,0.10505369]
[1734975603365,0.005,93676.0,93675.0,0.20625369]
[1734975603614,0.005,93676.0,93675.0,0.20518632]
[1734975603993,0.15,93690.0,93676.0,0.236501]
[1734975604189,0.15,93692.0,93677.0,0.10398632]
[1734975604461,0.15,93692.0,93678.0,0.426993]
[1734975604665,0.15,93698.0,93679.0,0.10505363]
[1734975604866,0.15,93696.0,93680.0,0.213492]
[1734975605067,0.15,93694.0,93681.0,0.10398632]
[1734975605683,0.15,93694.0,93687.0,0.213475]
[1734975605818,0.15,93694.0,93682.0,0.213486]
[1734975606023,0.002,93698.0,93683.0,0.13920085]
[1734975606255,0.001,93694.0,93690.0,0.213468]
[1734975606804,0.001,93694.0,93690.0,0.426936]
[1734975607029,0.001,93694.0,93691.0,0.00106721]
[1734975607237,0.001,93694.0,93692.0,0.213465]
[1734975607435,0.213423,93711.0,93690.0,0.213468]
[1734975607639,0.213423,93711.0,93698.0,0.213451]
[1734975607767,0.213412,93716.0,93700.0,0.426893]
[1734975607972,0.213412,93716.0,93700.0,0.213446]
[1734975608402,0.426824,93716.0,93700.0,0.213446]
[1734975608774,0.21342,93712.0,93700.0,0.213446]
[1734975609103,0.15,93709.0,93700.0,0.001]
[1734975609307,0.15,93709.0,93676.0,0.11862719]
[1734975609308,0.213488,93682.0,93676.0,0.09562719]
[1734975609880,0.213488,93682.0,93674.0,0.00033049]
[1734975610312,0.213481,93686.0,93674.0,0.00033049]
[1734975610674,0.363469,93691.0,93676.0,0.213501]
[1734975610850,0.15,93691.0,93675.0,0.10398632]
[1734975611071,0.15,93691.0,93674.0,0.00033049]
[1734975611072,0.213499,93678.0,93674.0,0.00033049]
[1734975611285,0.213501,93676.0,93674.0,0.00033049]
[1734975612505,0.214501,93676.0,93674.0,0.00933049]
[1734975612715,0.214501,93676.0,93674.0,0.01133049]
[1734975612923,0.00106971,93675.0,93674.0,0.01133049]
[1734975613570,0.363536,93661.0,93660.0,0.0001708]
[1734975613751,0.59802232,93661.0,93660.0,8e-07]
[1734975613988,0.213583,93640.0,93616.0,0.41706946]
[1734975614199,0.363583,93640.0,93639.0,0.09578694]
[1734975614440,0.46756932,93640.0,93639.0,0.00015975]
[1734975615287,0.46756932,93640.0,93639.0,0.00515975]
[1734975615495,0.46756932,93640.0,93639.0,0.00115975]
[1734975615701,0.46756932,93640.0,93639.0,0.00015975]
[1734975615901,0.57163132,93640.0,93639.0,0.00015975]
[1734975616106,0.57363132,93640.0,93639.0,0.00015975]
[1734975616902,0.57763132,93640.0,93639.0,0.00015975]
[1734975617348,0.57163132,93640.0,93639.0,0.00015975]
[1734975617652,0.57763132,93640.0,93639.0,0.00015975]
[1734975617844,0.58525132,93640.0,93639.0,0.00015975]
[1734975618021,0.68525132,93640.0,93639.0,7.5e-07]
[1734975618244,0.57356932,93640.0,93639.0,0.00017155]
[1734975618552,0.363602,93632.0,93631.0,0.0001708]
[1734975618812,0.46758832,93632.0,93631.0,0.00070353]
[1734975620480,0.363602,93632.0,93631.0,0.00070353]
[1734975620702,0.364602,93632.0,93631.0,0.00070353]
[1734975621532,0.363602,93632.0,93631.0,0.00070353]
[1734975621880,0.001,93632.0,93631.0,0.00070353]
[1734975622459,0.001,93632.0,93631.0,0.10468985]
[1734975622808,0.001,93632.0,93631.0,0.1057577]
[1734975622941,0.001,93632.0,93631.0,0.10468985]
[1734975623142,0.213564,93649.0,93632.0,0.427204]
[1734975623352,0.15794389,93660.0,93634.0,0.023]
[1734975623553,0.213533,93663.0,93635.0,0.10505407]
[1734975623756,0.21354,93659.0,93645.0,0.21357]
[1734975623954,0.21354,93659.0,93646.0,0.21463574]
[1734975624185,0.21354,93659.0,93646.0,0.213568]
[1734975624364,0.15794389,93660.0,93635.0,0.10398632]
[1734975624365,0.15794389,93660.0,93650.0,0.213559]
[1734975624741,0.009,93660.0,93650.0,0.213559]
[1734975624938,0.009,93660.0,93647.0,0.213566]
[1734975625269,0.009,93660.0,93651.0,0.213556]
[1734975625680,0.009,93660.0,93650.0,0.002]
[1734975626082,0.15,93658.0,93650.0,0.002]
[1734975626312,0.213553,93654.0,93650.0,0.002]
[1734975626711,0.15,93658.0,93650.0,0.002]
[1734975626914,0.15,93658.0,93650.0,0.005]
[1734975627119,0.21461471,93657.0,93644.0,0.213574]
[1734975627318,0.15,93656.0,93647.0,0.002]
[1734975627525,0.213561,93650.0,93647.0,0.002]
[1734975627855,0.213601,93633.0,93622.0,0.0786]
[1734975628480,0.00106971,93632.0,93616.0,0.09562719]
[1734975628886,0.00106971,93632.0,93617.0,0.213634]
[1734975629217,0.00106971,93632.0,93613.0,0.213644]
[1734975629423,0.00106971,93632.0,93617.0,0.213634]
[1734975629864,0.00106971,93632.0,93613.0,0.213644]
[1734975630274,0.00106971,93632.0,93631.0,0.00470353]
[1734975630433,0.00506971,93632.0,93631.0,0.00470353]
[1734975631100,0.00106971,93632.0,93631.0,0.00470353]
[1734975631298,0.00106971,93632.0,93631.0,0.00670353]
[1734975634958,0.15,93638.0,93631.0,0.00470353]
[1734975635158,0.15,93638.0,93631.0,0.00770353]
[1734975635565,0.15,93638.0,93631.0,0.00638866]
[1734975635768,0.15,93638.0,93631.0,0.003]
[1734975635978,0.15,93636.0,93631.0,0.003]
[1734975636185,0.001,93632.0,93631.0,0.007]
[1734975636390,0.21363,93620.0,93612.0,8.56e-05]
[1734975636600,0.213622,93624.0,93613.0,0.10398632]
[1734975636813,0.427244,93624.0,93613.0,0.10398632]
[1734975637028,0.213622,93624.0,93613.0,0.10398632]
[1734975637243,0.21359,93637.0,93613.0,0.10398632]
[1734975637447,0.001,93632.0,93631.0,0.004]
[1734975637650,0.15794389,93640.0,93614.0,0.213643]
[1734975637651,0.15,93636.0,93614.0,0.213643]
[1734975637860,0.213612,93628.0,93616.0,0.213638]
[1734975638058,0.15,93636.0,93615.0,0.10398632]
[1734975638282,0.213626,93622.0,93615.0,0.10398632]
[1734975638487,0.15794389,93630.0,93615.0,0.10398632]
[1734975638713,0.213621,93624.0,93615.0,0.10398632]
[1734975639327,0.213631,93620.0,93613.0,0.003]
[1734975639527,0.213631,93620.0,93613.0,0.002]
[1734975639951,0.213624,93623.0,93616.0,0.002]
[1734975640146,0.002,93624.0,93616.0,0.002]
[1734975640446,0.002,93624.0,93618.0,0.213633]
[1734975640574,0.15,93632.0,93619.0,0.10398632]
[1734975640781,0.15,93632.0,93619.0,0.31761732]
[1734975640995,0.15,93632.0,93624.0,0.21362]
[1734975641191,0.15,93637.0,93625.0,0.213618]
[1734975641761,0.15,93637.0,93620.0,0.213629]
[1734975641762,0.15,93635.0,93620.0,0.213629]
[1734975641977,0.15,93633.0,93620.0,0.213629]
[1734975642203,0.15,93633.0,93620.0,0.21329325]
[1734975642541,0.003,93624.0,93619.0,0.10398632]
[1734975642749,0.003,93624.0,93620.0,0.03284764]
[1734975642964,0.003,93624.0,93623.0,0.213622]
[1734975643187,0.003,93624.0,93623.0,0.34060832]
[1734975643385,8.55e-05,93639.0,93637.0,0.023]
[1734975643593,8.55e-05,93639.0,93638.0,0.42214208]
[1734975643792,8.55e-05,93639.0,93638.0,0.42107432]
[1734975644661,8.55e-05,93639.0,93638.0,0.48454095]
[1734975644855,8.55e-05,93658.0,93657.0,0.317045]
[1734975645051,8.55e-05,93658.0,93657.0,0.42103132]
[1734975645521,8.55e-05,93658.0,93657.0,0.18448632]
[1734975645717,8.55e-05,93658.0,93638.0,0.2979]
[1734975645718,8.55e-05,93658.0,93648.0,0.213565]
[1734975645857,8.55e-05,93658.0,93647.0,0.0816]
[1734975645858,8.55e-05,93658.0,93650.0,0.213561]
[1734975646057,0.00061757,93658.0,93653.0,0.427107]
[1734975646437,0.00761757,93658.0,93653.0,0.213553]
[1734975646635,0.00061757,93658.0,93648.0,0.213565]
[1734975646809,0.00061757,93658.0,93657.0,0.001]
[1734975647042,0.00161757,93658.0,93657.0,0.001]
[1734975647254,0.00161757,93658.0,93649.0,0.213562]
[1734975647473,0.00461757,93658.0,93649.0,0.213562]
[1734975647656,0.00461757,93658.0,93653.0,0.213552]
[1734975648603,0.00461757,93658.0,93650.0,0.213559]
[1734975648604,0.00661757,93658.0,93650.0,0.213559]
[1734975648949,0.00561757,93658.0,93650.0,0.213559]
[1734975649182,0.01461757,93658.0,93650.0,0.213559]
[1734975649330,0.01561757,93658.0,93650.0,0.213559]
[1734975649523,0.00161757,93658.0,93650.0,0.213559]
[1734975649709,0.00961757,93658.0,93650.0,0.213559]
[1734975649915,0.00861757,93658.0,93650.0,0.213559]
[1734975650123,0.01261757,93658.0,93655.0,0.023]
[1734975650321,0.01261757,93658.0,93656.0,0.10505386]
[1734975650521,0.01261757,93658.0,93657.0,0.023]
[1734975650724,0.01261757,93658.0,93657.0,0.20678632]
[1734975651739,0.00861757,93658.0,93657.0,0.20678632]
[1734975651954,0.01361757,93658.0,93657.0,0.20678632]
[1734975652186,0.00561757,93658.0,93657.0,0.20678632]